[Event "Turkey IS Bank Super League 2017"]
[Site "Darica-Kocaeli"]
[Date "2017.07.28"]
[Round "3"]
[White "Ozbay, Ece"]
[Black "Arda, Cagil Irmak"]
[Result "1/2-1/2"]
[ECO "B81"]
[WhiteElo "1970"]
[BlackElo "2080"]
[Annotator "NA"]
[PlyCount "106"]
[EventType "team-tourn"]
[EventCountry "TUR"]
[SourceTitle "playchess.com"]
[Source "ChessBase"]
[SourceQuality "1"]
[TimeControl "40/5400+30:1800+30"]

1. e4 {[%emt 0:00:30]} c5 {[%emt 0:01:00]} 2. Nf3 {[%emt 0:00:30]} e6 {[%emt 0:00:30]} 3. d4 {[%emt 0:00:30]} cxd4 {[%emt 0:00:30]} 4. Nxd4 {[%emt 0:00:30]} Nf6 {[%emt 0:00:30]} 5. Nc3 {[%emt 0:00:30]} d6 {[%emt 0:00:00]} 6. g4 {[%emt 0:00:00]} e5 {[%emt 0:00:00]} 7. Nf5 {[%emt 0:02:00]} h5 {[%emt 0:00:00]} 8. Bg5 {[%emt 0:22:30]} hxg4 {[%emt 0:00:00]} 9. Nd5 {[%emt 0:13:30]} Bxf5 {[%emt 0:00:30]} 10. Bxf6 {[%emt 0:00:00]} gxf6 {[%emt 0:04:30]} 11. exf5 {[%emt 0:00:00]} Nc6 $16 {[%emt 0:01:30]} 12. Qxg4 {[%emt 0:13:30]} Qa5+ {[%emt 0:00:30]} 13. Nc3 {[%emt 0:00:30]} d5 {[%emt 0:01:30]} 14. Qa4 {[%emt 0:06:30]} Qxa4 {[%emt 0:06:30]} 15. Nxa4 {[%emt 0:00:30]} Rh4 {[%emt 0:12:30]} 16. Nc3 {[%emt 0:12:30]} Nb4 {[%emt 0:02:30]} 17. Bd3 {[%emt 0:03:30]} Rc8 {[%emt 0:16:30] [%clk 0:50]} 18. a3 {[%emt 0:08:57]} Nxd3+ {[%emt 0:00:30]} 19. cxd3 {[%emt 0:00:30]} Rc5 {[%emt 0:00:30]} 20. O-O {[%emt 0:09:34]} Bh6 {[%emt 0:00:30]} 21. Ne2 {[%emt 0:01:55]} Rc2 {[%emt 0:03:30]} 22. Rfe1 {[%emt 0:01:25]} Rxb2 {[%emt 0:01:30]} 23. Rab1 {[%emt 0:00:47]} Rxb1 {[%emt 0:00:30]} 24. Rxb1 {[%emt 0:00:02]} b6 {[%emt 0:00:30]} 25. Rb5 {[%emt 0:01:06]} Ra4 {[%emt 0:02:30]} 26. Rxd5 {[%emt 0:01:05]} Rxa3 {[%emt 0:00:30]} 27. Ng3 {[%emt 0:00:03]} Ra5 {[%emt 0:08:30]} 28. Rd6 {[%emt 0:00:59]} Ke7 {[%emt 0:00:00]} 29. Ne4 {[%emt 0:00:00]} Bg5 {[%emt 0:02:00]} 30. Rc6 {[%emt 0:00:53]} Rd5 {[%emt 0:00:30]} 31. Rc7+ {[%emt 0:00:15]} Rd7 {[%emt 0:00:30]} 32. Rc3 {[%emt 0:00:00]} Kd8 {[%emt 0:03:30]} 33. Kg2 {[%emt 0:00:51]} Rc7 {[%emt 0:00:30]} 34. Rb3 {[%emt 0:00:30]} Rc6 {[%emt 0:01:30]} 35. Kg3 {[%emt 0:00:36]} Bc1 {[%emt 0:01:30]} 36. h4 {[%emt 0:00:27]} Ke7 {[%emt 0:03:30]} 37. h5 {[%emt 0:00:24]} Kf8 {[%emt 0:01:30]} 38. Kg4 {[%emt 0:00:37]} Kg7 {[%emt 0:01:30]} 39. Nc3 {[%emt 0:00:32]} a6 {[%emt 0:07:32]} 40. Ne2 {[%emt 0:00:00]} b5 {[%emt 0:02:28]} 41. f4 {[%emt 0:14:09]} Rc2 {[%emt 0:05:30]} 42. Kf3 {[%emt 0:04:42]} Bd2 {[%emt 0:08:30]} 43. Rb1 {[%emt 0:05:34]} Ra2 {[%emt 0:03:30]} 44. Rg1+ {[%emt 0:04:05]} Kh6 {[%emt 0:04:30]} 45. fxe5 {[%emt 0:00:40]} fxe5 {[%emt 0:07:17]} 46. Ke4 {[%emt 0:01:05]} b4 {[%emt 0:07:41]} 47. f6 {[%emt 0:03:33]} Bg5 {[%emt 0:01:51]} 48. Ng3 {[%emt 0:00:20]} Bxf6 {[%emt 0:05:26]} 49. Rf1 {[%emt 0:00:51]} Kg7 {[%emt 0:01:39]} 50. Nf5+ {[%emt 0:00:26]} Kf8 {[%emt 0:01:16]} 51. Nh6 {[%emt 0:00:29]} Kg7 {[%emt 0:03:08]} 52. Nf5+ {[%emt 0:00:02]} Kf8 {[%emt 0:00:53]} 53. Nh6 {[%emt 0:00:05]} Kg7 {[%emt 0:00:15]} 1/2-1/2

[Event "Turkey IS Bank Super League 2017"]
[Site "Darica-Kocaeli"]
[Date "2017.07.28"]
[Round "3"]
[White "Yassibag, Ipek Asli"]
[Black "Yurdakul, Didem Nuray"]
[Result "0-1"]
[ECO "B21"]
[WhiteElo "1880"]
[BlackElo "1697"]
[Annotator "NA"]
[PlyCount "94"]
[EventType "team-tourn"]
[EventCountry "TUR"]
[SourceTitle "playchess.com"]
[Source "ChessBase"]
[SourceQuality "1"]
[TimeControl "40/5400+30:1800+30"]

1. e4 {[%emt 0:00:30]} c5 {[%emt 0:01:00]} 2. d4 {[%emt 0:00:30]} cxd4 {[%emt 0:00:30]} 3. c3 {[%emt 0:00:30]} d3 {[%emt 0:00:30]} 4. Bxd3 {[%emt 0:00:30]} Nc6 {[%emt 0:00:30]} 5. Nf3 {[%emt 0:00:30]} d6 {[%emt 0:00:30]} 6. h3 {[%emt 0:03:30]} g6 {[%emt 0:01:30]} 7. O-O {[%emt 0:01:30]} Bg7 {[%emt 0:00:30]} 8. Qe2 {[%emt 0:00:30]} Nf6 {[%emt 0:01:30]} 9. Bc4 {[%emt 0:02:30]} O-O {[%emt 0:00:30]} 10. Rd1 {[%emt 0:00:30]} Qc7 {[%emt 0:01:30]} 11. Bf4 {[%emt 0:02:30]} Nd7 {[%emt 0:02:30]} 12. Na3 {[%emt 0:02:30]} a6 {[%emt 0:04:30]} 13. Nc2 {[%emt 0:04:30]} b5 {[%emt 0:02:30]} 14. Bd5 {[%emt 0:00:30]} Bb7 {[%emt 0:01:30]} 15. Rac1 {[%emt 0:05:30]} Na5 {[%emt 0:07:30]} 16. Ne3 {[%emt 0:01:30]} Rac8 {[%emt 0:13:30]} 17. c4 {[%emt 0:12:30]} bxc4 {[%emt 0:09:30]} 18. b4 {[%emt 0:01:30]} Nc6 {[%emt 0:01:30]} 19. Nxc4 {[%emt 0:03:30]} Qb8 {[%emt 0:03:30]} 20. Nxd6 {[%emt 0:06:30]} exd6 {[%emt 0:02:30]} 21. Bxc6 {[%emt 0:03:30]} Rxc6 {[%emt 0:01:30]} 22. Rxc6 {[%emt 0:00:30]} Bxc6 {[%emt 0:00:30]} 23. Bxd6 {[%emt 0:00:00]} Qb7 {[%emt 0:01:30]} 24. Bxf8 {[%emt 0:00:00]} Kxf8 {[%emt 0:00:30]} 25. Qc4 {[%emt 0:08:30]} Bb5 {[%emt 0:07:30] [%clk 0:34]} 26. Qb3 {[%emt 0:04:30]} Bf6 {[%emt 0:07:30]} 27. Qc2 {[%emt 0:06:30]} Bc6 {[%emt 0:03:30]} 28. Qd2 {[%emt 0:02:30]} Be7 {[%emt 0:13:50]} 29. a3 {[%emt 0:01:30]} Nf6 {[%emt 0:01:04]} 30. Qh6+ {[%emt 0:04:30]} Kg8 {[%emt 0:01:50]} 31. e5 {[%emt 0:02:34]} Bf8 {[%emt 0:01:58]} 32. Rd8 {[%emt 0:11:09]} Ne8 {[%emt 0:02:36]} 33. Qe3 {[%emt 0:02:34]} Be7 {[%emt 0:01:02]} 34. Rd3 {[%emt 0:01:49]} Ng7 {[%emt 0:00:21]} 35. Qc1 {[%emt 0:02:01]} Nf5 {[%emt 0:01:39]} 36. Qd2 {[%emt 0:02:43]} Bb5 {[%emt 0:02:03]} 37. Rc3 {[%emt 0:00:33]} Kf8 {[%emt 0:01:31]} 38. Qc2 {[%emt 0:00:44]} Qb6 {[%emt 0:00:48]} 39. Qd2 {[%emt 0:00:45]} Ng3 {[%emt 0:00:23]} 40. Rc8+ {[%emt 0:00:30]} Kg7 {[%emt 0:00:25]} 41. Qb2 {[%emt 0:02:08]} Ne2+ {[%emt 0:01:30]} 42. Kh2 {[%emt 0:05:30]} Qxf2 {[%emt 0:04:30]} 43. Rc7 {[%emt 0:01:30]} Bg5 {[%emt 0:06:30]} 44. Rxf7+ {[%emt 0:03:30]} Kxf7 {[%emt 0:04:25]} 45. Nxg5+ {[%emt 0:00:47]} Ke7 {[%emt 0:00:30]} 46. Nf3 {[%emt 0:02:03]} Bc6 {[%emt 0:01:33]} 47. Qc3 {[%emt 0:02:52]} Nxc3 {[%emt 0:00:06]} 0-1

[Event "Turkey IS Bank Super League 2017"]
[Site "Darica-Kocaeli"]
[Date "2017.07.28"]
[Round "3"]
[White "Ayan, Bengu Sena"]
[Black "Avramidou, Anastasia"]
[Result "0-1"]
[ECO "A21"]
[WhiteElo "1862"]
[BlackElo "2247"]
[Annotator "NA"]
[PlyCount "76"]
[EventType "team-tourn"]
[EventCountry "TUR"]
[SourceTitle "playchess.com"]
[Source "ChessBase"]
[SourceQuality "1"]
[TimeControl "40/5400+30:1800+30"]

1. d4 {[%emt 0:00:30] 6} d6 {[%emt 0:01:00] 6} 2. c4 {[%emt 0:00:30] 6} e5 {[%emt 0:00:30]} 3. Nf3 {[%emt 0:07:30]} e4 {[%emt 0:00:00]} 4. Nfd2 {[%emt 0:01:30]} f5 {[%emt 0:00:00]} 5. e3 {[%emt 0:00:30]} Nf6 {[%emt 0:00:30]} 6. Nc3 {[%emt 0:01:30]} c5 {[%emt 0:03:30]} 7. Nb3 {[%emt 0:07:30]} Nc6 {[%emt 0:05:30]} 8. Be2 {[%emt 0:05:30]} Be7 {[%emt 0:05:30] LiveBook: 12 Games} 9. O-O {[%emt 0:04:30]} O-O {[%emt 0:03:30]} 10. f3 $11 {[%emt 0:06:30]} a5 {[%emt 0:22:30]} 11. a4 {[%emt 0:07:30]} b6 {[%emt 0:05:30]} 12. fxe4 {[%emt 0:04:30]} fxe4 {[%emt 0:00:30]} 13. Bd2 {[%emt 0:04:30]} Qe8 {[%emt 0:06:30]} 14. Be1 {[%emt 0:06:30]} Qg6 {[%emt 0:06:30]} 15. Bg3 {[%emt 0:04:30]} Bf5 {[%emt 0:03:30]} 16. Rf4 {[%emt 0:03:30] [%clk 0:28]} Rad8 {[%emt 0:02:30]} 17. Qd2 {[%emt 0:04:30]} d5 {[%emt 0:17:19]} 18. Raf1 {[%emt 0:07:32]} Be6 {[%emt 0:02:07]} 19. cxd5 {[%emt 0:01:41]} Nxd5 {[%emt 0:00:42]} 20. Rxf8+ {[%emt 0:01:02]} Bxf8 {[%emt 0:00:06]} 21. Nxd5 {[%emt 0:07:29]} Bxd5 {[%emt 0:00:07]} 22. Qc3 {[%emt 0:01:11]} Qe6 {[%emt 0:04:52]} 23. Bb5 {[%emt 0:04:22]} Bxb3 {[%emt 0:02:54]} 24. Bxc6 {[%emt 0:00:30]} cxd4 {[%emt 0:00:19]} 25. exd4 {[%emt 0:00:02]} Bb4 {[%emt 0:00:38]} 26. Qe3 {[%emt 0:05:00]} Bc4 {[%emt 0:02:15]} 27. Qg5 {[%emt 0:00:56]} Be7 {[%emt 0:00:27]} 28. d5 {[%emt 0:00:58]} Bxg5 {[%emt 0:02:38]} 29. dxe6 {[%emt 0:00:20]} Bxf1 {[%emt 0:00:10]} 30. Kxf1 {[%emt 0:00:16]} Kf8 {[%emt 0:01:26]} 31. Bd7 {[%emt 0:00:23]} Ke7 {[%emt 0:01:15]} 32. Bc7 {[%emt 0:01:18]} Rf8+ {[%emt 0:00:04]} 33. Ke2 {[%emt 0:00:04]} Bf4 {[%emt 0:00:49]} 34. Bxb6 {[%emt 0:00:11]} Rb8 {[%emt 0:00:43]} 35. Bc5+ {[%emt 0:00:54]} Bd6 {[%emt 0:00:30]} 36. Bd4 {[%emt 0:00:00]} Bxh2 {[%emt 0:00:00]} 37. Ke3 {[%emt 0:00:23]} Bg1+ {[%emt 0:00:07]} 38. Kxe4 {[%emt 0:00:39]} Rb4 {[%emt 0:00:13]} 0-1

[Event "Turkey IS Bank Super League 2017"]
[Site "Darica-Kocaeli"]
[Date "2017.07.28"]
[Round "3"]
[White "Kargaci, Humeyra"]
[Black "Ayazmali, Gizem"]
[Result "1/2-1/2"]
[ECO "E92"]
[WhiteElo "1737"]
[BlackElo "1849"]
[Annotator "NA"]
[PlyCount "83"]
[EventType "team-tourn"]
[EventCountry "TUR"]
[SourceTitle "playchess.com"]
[Source "ChessBase"]
[SourceQuality "1"]
[TimeControl "40/5400+30:1800+30"]

1. d4 {[%emt 0:00:30] 9} Nf6 {[%emt 0:01:00] 9} 2. c4 {[%emt 0:00:30] 9} g6 {[%emt 0:00:30]} 3. Nc3 {[%emt 0:00:30]} Bg7 {[%emt 0:00:30]} 4. e4 {[%emt 0:00:30]} d6 {[%emt 0:00:30]} 5. Nf3 {[%emt 0:00:30]} O-O {[%emt 0:00:30]} 6. Be2 {[%emt 0:00:30]} e5 {[%emt 0:00:30]} 7. dxe5 {[%emt 0:00:30]} dxe5 {[%emt 0:00:00]} 8. Bg5 {[%emt 0:00:00]} Qxd1+ {[%emt 0:16:00]} 9. Rxd1 {[%emt 0:00:00]} c6 {[%emt 0:11:30]} 10. Nd2 {[%emt 0:00:30]} h6 {[%emt 0:00:30]} 11. Be3 {[%emt 0:00:30]} Na6 {[%emt 0:02:30]} 12. f3 {[%emt 0:00:00]} Rd8 {[%emt 0:02:30]} 13. Kf2 {[%emt 0:03:00]} Be6 {[%emt 0:14:30]} 14. Nb3 {[%emt 0:00:30]} b6 {[%emt 0:08:30]} 15. c5 {[%emt 0:17:30]} Rxd1 {[%emt 0:07:30]} 16. Rxd1 {[%emt 0:01:30]} Bxb3 {[%emt 0:00:30]} 17. axb3 {[%emt 0:01:30]} Nxc5 {[%emt 0:00:30]} 18. Bxc5 {[%emt 0:00:30]} bxc5 {[%emt 0:00:00]} 19. Ra1 {[%emt 0:00:30]} Nd7 {[%emt 0:11:00]} 20. Ra6 {[%emt 0:03:30]} Nb6 {[%emt 0:01:30]} 21. Na4 {[%emt 0:01:30]} Nxa4 {[%emt 0:02:10]} 22. Rxa4 {[%emt 0:00:30] 0} Bf8 {[%emt 0:02:08]} 23. Bc4 {[%emt 0:01:30] 2} a5 {[%emt 0:00:24]} 24. Ra1 {[%emt 0:00:30] 4} Bd6 {[%emt 0:01:16]} 25. Ke2 {[%emt 0:01:30] ]} Kf8 {[%emt 0:00:54]} 26. h4 {[%emt 0:02:30] 8} Ke7 {[%emt 0:01:57]} 27. Rh1 {[%emt 0:02:30] 1 [%clk 1:00:0]} Bc7 {[%emt 0:05:18]} 28. h5 {[%emt 0:00:30]} g5 {[%emt 0:00:59]} 29. g4 {[%emt 0:00:30]} Rd8 {[%emt 0:00:57]} 30. Rd1 {[%emt 0:00:30]} Rd4 {[%emt 0:00:00]} 31. Ra1 {[%emt 0:00:30]} f6 {[%emt 0:01:10]} 32. Ke3 {[%emt 0:00:30]} Rd8 {[%emt 0:04:11]} 33. Ke2 {[%emt 0:00:30]} Rb8 {[%emt 0:00:50]} 34. Ke3 {[%emt 0:01:30]} Rb4 {[%emt 0:02:04]} 35. Ke2 {[%emt 0:00:30]} a4 {[%emt 0:01:44]} 36. Rxa4 {[%emt 0:00:00]} Rxa4 {[%emt 0:00:32]} 37. bxa4 {[%emt 0:00:00]} Kd7 {[%emt 0:00:30]} 38. Kd3 {[%emt 0:00:30]} Ba5 {[%emt 0:00:34]} 39. Kc2 {[%emt 0:00:30]} Kc7 {[%emt 0:00:47]} 40. b3 {[%emt 0:00:00]} Kb6 {[%emt 0:00:35]} 41. Kd3 {[%emt 0:01:00]} Be1 {[%emt 0:04:30]} 42. Ke2 {[%emt 0:00:00]} 1/2-1/2

[Event "Turkey IS Bank Super League 2017"]
[Site "Darica-Kocaeli"]
[Date "2017.07.28"]
[Round "3"]
[White "Aluc, Bulut Evrim"]
[Black "Gundogan, Sinem Cagla"]
[Result "0-1"]
[ECO "E76"]
[WhiteElo "1699"]
[BlackElo "2000"]
[Annotator "NA"]
[PlyCount "76"]
[EventType "team-tourn"]
[EventCountry "TUR"]
[SourceTitle "playchess.com"]
[Source "ChessBase"]
[SourceQuality "1"]
[TimeControl "40/5400+30:1800+30"]

1. d4 {[%emt 0:00:30]} Nf6 {[%emt 0:01:00]} 2. c4 {[%emt 0:00:30]} g6 {[%emt 0:00:30]} 3. Nc3 {[%emt 0:00:30]} Bg7 {[%emt 0:00:30]} 4. e4 {[%emt 0:00:30]} d6 {[%emt 0:00:30]} 5. f4 {[%emt 0:00:30]} O-O {[%emt 0:00:00]} 6. Nf3 {[%emt 0:03:30]} Na6 {[%emt 0:00:00]} 7. Bd3 {[%emt 0:06:30]} e5 {[%emt 0:02:30]} 8. fxe5 {[%emt 0:00:30]} dxe5 {[%emt 0:00:30]} 9. d5 {[%emt 0:00:00]} Nc5 {[%emt 0:00:30]} 10. Be3 {[%emt 0:06:00]} Nxd3+ {[%emt 0:05:30]} 11. Qxd3 {[%emt 0:00:30]} Ng4 {[%emt 0:00:30]} 12. Bc5 {[%emt 0:09:30]} Re8 {[%emt 0:00:30]} 13. h3 {[%emt 0:00:00]} Nh6 {[%emt 0:06:30]} 14. g4 {[%emt 0:08:00]} f5 {[%emt 0:02:30]} 15. gxf5 {[%emt 0:03:30]} Nxf5 {[%emt 0:00:30]} 16. O-O-O {[%emt 0:02:30]} Nd6 {[%emt 0:02:30]} 17. Be3 {[%emt 0:04:30]} b6 {[%emt 0:06:30]} 18. Rdf1 {[%emt 0:15:30]} a5 {[%emt 0:07:30]} 19. a4 {[%emt 0:13:30]} Nb7 {[%emt 0:11:30]} 20. Qd2 {[%emt 0:01:30]} Nc5 {[%emt 0:00:30]} 21. Kc2 {[%emt 0:01:30] [%clk 0:19.43]} Ba6 {[%emt 0:04:30]} 22. b3 {[%emt 0:01:47]} Qd6 {[%emt 0:00:30]} 23. Ng5 {[%emt 0:05:56]} Re7 {[%emt 0:06:30]} 24. Rh2 {[%emt 0:02:43]} Nxb3 {[%emt 0:14:30]} 25. Kxb3 {[%emt 0:01:48]} Qb4+ {[%emt 0:00:00]} 26. Kc2 {[%emt 0:00:24]} Bxc4 {[%emt 0:00:00]} 27. Rb1 {[%emt 0:00:08]} Qa3 {[%emt 0:01:30]} 28. Qc1 {[%emt 0:02:34]} Qd6 {[%emt 0:00:30]} 29. Nb5 {[%emt 0:01:17]} Qd7 {[%emt 0:02:30]} 30. Kd2 {[%emt 0:01:14]} Bxd5 {[%emt 0:01:30]} 31. exd5 {[%emt 0:00:43]} Qxd5+ {[%emt 0:00:00]} 32. Ke1 {[%emt 0:01:46]} e4 {[%emt 0:04:32]} 33. Nxc7 {[%emt 0:04:39]} Qd3 {[%emt 0:02:51]} 34. Nb5 {[%emt 0:01:39]} Be5 {[%emt 0:03:15]} 35. Re2 {[%emt 0:00:45]} Rf8 {[%emt 0:03:52]} 36. Bf2 {[%emt 0:00:29]} e3 {[%emt 0:01:20]} 37. Rxe3 {[%emt 0:00:35]} Bg3 {[%emt 0:00:40]} 38. Qd1 {[%emt 0:00:27]} Rxe3+ {[%emt 0:00:13]} 0-1

[Event "Turkey IS Bank Super League 2017"]
[Site "Darica-Kocaeli"]
[Date "2017.07.28"]
[Round "3"]
[White "Sade, Defne"]
[Black "Duran, Esma Doga"]
[Result "1-0"]
[ECO "C06"]
[WhiteElo "1654"]
[BlackElo "1939"]
[Annotator "NA"]
[PlyCount "141"]
[EventType "team-tourn"]
[EventCountry "TUR"]
[SourceTitle "playchess.com"]
[Source "ChessBase"]
[SourceQuality "1"]
[TimeControl "40/5400+30:1800+30"]

1. e4 {[%emt 0:00:30]} e6 {[%emt 0:01:00]} 2. d4 {[%emt 0:00:30]} d5 {[%emt 0:00:30]} 3. Nd2 {[%emt 0:00:30]} Nf6 {[%emt 0:00:30]} 4. e5 {[%emt 0:00:30]} Nfd7 {[%emt 0:00:30]} 5. Bd3 {[%emt 0:00:30]} c5 {[%emt 0:00:30]} 6. c3 {[%emt 0:00:30]} Nc6 {[%emt 0:00:30]} 7. Ne2 {[%emt 0:00:30]} cxd4 {[%emt 0:00:30]} 8. cxd4 {[%emt 0:00:30]} f6 {[%emt 0:00:30]} 9. exf6 {[%emt 0:00:30]} Nxf6 {[%emt 0:00:30]} 10. Nf3 {[%emt 0:00:00]} Bd6 {[%emt 0:00:00]} 11. O-O {[%emt 0:00:00]} Qc7 {[%emt 0:01:00]} 12. Nc3 {[%emt 0:00:00]} a6 {[%emt 0:02:30]} 13. Bd2 {[%emt 0:00:00]} O-O {[%emt 0:00:30]} 14. Rc1 {[%emt 0:00:00]} g6 {[%emt 0:05:30]} 15. Re1 {[%emt 0:12:00]} Nh5 {[%emt 0:04:30]} 16. Bh6 {[%emt 0:08:30]} Rf7 {[%emt 0:16:30]} 17. Na4 {[%emt 0:05:30]} Nf4 {[%emt 0:27:30]} 18. Ne5 {[%emt 0:15:30]} Bxe5 {[%emt 0:03:30]} 19. dxe5 {[%emt 0:00:00]} b6 {[%emt 0:12:30]} 20. Bb1 {[%emt 0:08:00] [%clk 0:44]} Bd7 {[%emt 0:02:04]} 21. Qd2 {[%emt 0:05:30]} Nh5 {[%emt 0:02:10]} 22. Qe3 {[%emt 0:10:30]} Rb8 {[%emt 0:02:32]} 23. Qa3 {[%emt 0:08:30]} Qd8 {[%emt 0:04:34]} 24. g3 {[%emt 0:04:53]} Nd4 {[%emt 0:01:26]} 25. Re3 {[%emt 0:02:42]} Bb5 {[%emt 0:02:22]} 26. Nc3 {[%emt 0:01:56]} Qc7 {[%emt 0:02:43]} 27. Ne2 {[%emt 0:03:16]} Nxe2+ {[%emt 0:00:54]} 28. Rxe2 {[%emt 0:00:01]} Qb7 {[%emt 0:02:58]} 29. Rec2 {[%emt 0:02:24]} Bc4 {[%emt 0:02:04]} 30. Qd6 {[%emt 0:01:49]} Re8 {[%emt 0:01:15]} 31. b3 {[%emt 0:02:20]} Rd7 {[%emt 0:00:23]} 32. Qb4 {[%emt 0:01:05]} Bd3 {[%emt 0:00:15]} 33. Rc6 {[%emt 0:02:27]} Bxb1 {[%emt 0:00:59]} 34. Rxb6 {[%emt 0:00:51]} Qa7 {[%emt 0:00:43]} 35. Rxb1 {[%emt 0:00:43]} Ng7 {[%emt 0:00:59]} 36. Bxg7 {[%emt 0:00:30]} Kxg7 {[%emt 0:00:30]} 37. Rc1 {[%emt 0:00:07]} d4 {[%emt 0:00:08]} 38. Rd6 {[%emt 0:03:14]} a5 {[%emt 0:00:44]} 39. Rxd7+ {[%emt 0:01:17]} Qxd7 {[%emt 0:00:30]} 40. Qxa5 {[%emt 0:00:30]} Rc8 {[%emt 0:30:30]} 41. Rxc8 {[%emt 0:30:30]} Qxc8 {[%emt 0:00:00]} 42. Qa7+ {[%emt 0:00:00]} Kh6 {[%emt 0:00:00]} 43. Qxd4 {[%emt 0:00:00]} Qc1+ {[%emt 0:00:00]} 44. Kg2 {[%emt 0:00:00]} Qc6+ {[%emt 0:00:00]} 45. Kh3 {[%emt 0:00:00]} g5 {[%emt 0:00:00]} 46. Qd6 {[%emt 0:00:00]} Qe8 {[%emt 0:00:00]} 47. Qd4 {[%emt 0:00:00]} Qb5 {[%emt 0:00:00]} 48. Kg2 {[%emt 0:00:00]} Qc6+ {[%emt 0:00:00]} 49. f3 {[%emt 0:00:00]} Qc2+ {[%emt 0:00:00]} 50. Qf2 {[%emt 0:00:00]} Qc3 {[%emt 0:00:00]} 51. Qe2 {[%emt 0:00:00]} Kg6 {[%emt 0:00:00]} 52. b4 {[%emt 0:00:00]} Kg7 {[%emt 0:00:00]} 53. b5 {[%emt 0:00:00]} Qd4 {[%emt 0:00:00]} 54. a4 {[%emt 0:01:30]} Qxa4 {[%emt 0:00:00]} 55. Qb2 {[%emt 0:00:09]} g4 {[%emt 0:00:00]} 56. fxg4 {[%emt 0:02:44]} Qxg4 {[%emt 0:00:00]} 57. h4 {[%emt 0:00:35]} Qe4+ {[%emt 0:00:00]} 58. Kh2 {[%emt 0:00:00]} Qb7 {[%emt 0:00:00]} 59. b6 {[%emt 0:00:00]} h5 {[%emt 0:00:00]} 60. Qf2 {[%emt 0:00:00]} Qc6 {[%emt 0:00:00]} 61. Qb2 {[%emt 0:03:29]} Qb7 {[%emt 0:00:00]} 62. Kg1 {[%emt 0:00:58]} Kh7 {[%emt 0:02:14]} 63. Qc2+ {[%emt 0:01:32]} Kh6 {[%emt 0:00:27]} 64. Qc1+ {[%emt 0:00:00]} Kg6 {[%emt 0:00:27]} 65. Qg5+ {[%emt 0:00:12]} Kh7 {[%emt 0:01:14]} 66. Qxh5+ {[%emt 0:00:30]} Kg7 {[%emt 0:00:00]} 67. Qg4+ {[%emt 0:01:11]} Kf7 {[%emt 0:00:00]} 68. Qf4+ {[%emt 0:00:15]} Kg8 {[%emt 0:00:24]} 69. Qb4 {[%emt 0:00:28]} Qf3 {[%emt 0:06:59]} 70. Qb2 {[%emt 0:00:09]} Qe3+ {[%emt 0:00:48]} 71. Kh2 {[%emt 0:00:07]} 1-0